fUST/lending_fUST_20250611
["ID","MTS","AMOUNT","RATE_DAILY","PERIOD"]
[365349670,1749613840230,-460.0,0.00021095,4]
[365349671,1749613840239,-1865.35,0.00021095,4]
[365349672,1749613840248,-460.0,0.00021095,4]
[365349674,1749613840258,-460.0,0.00021095,4]
[365349675,1749613840267,-964.2,0.00021095,4]
[365349676,1749613840276,-460.0,0.00021095,4]
[365349677,1749613840285,-646.18,0.00021095,4]
[365349678,1749613840295,-792.1,0.00021095,4]
[365349679,1749613840304,-460.0,0.00021095,4]
[365349681,1749613840314,-265.51151477,0.00021095,4]
[365349683,1749613840323,-431.07492484,0.00021095,4]
[365349685,1749613840334,-460.0,0.00021095,4]
[365349687,1749613840344,-460.0,0.00021095,4]
[365349688,1749613840353,-340.0,0.00021369,4]
[365349689,1749613840362,-329.61774601,0.00021369,4]
[365349690,1749613840372,-221.25926654,0.00021369,4]
[365349691,1749613840381,-460.0,0.00021369,4]
[365349692,1749613840391,-460.0,0.00021369,4]
[365349693,1749613840400,-420.0,0.00021369,4]
[365349694,1749613840409,-380.0,0.00021369,4]
[365349695,1749613840419,-380.0,0.00021369,4]
[365349696,1749613840428,-460.0,0.00021369,4]
[365349697,1749613840437,-205.02021438,0.00021369,4]
[365349698,1749613840447,-460.0,0.00021369,4]
[365349699,1749613840456,-279.67708722,0.00021369,4]
[365349700,1749613840466,-2272.46,0.00021369,4]
[365349701,1749613840475,-595.06227087,0.00021369,4]
[365349702,1749613840485,-460.0,0.00021369,4]
[365349703,1749613840494,-272.33817616,0.00021369,4]
[365349704,1749613840504,-967.8,0.00021369,4]
[365349705,1749613840513,-460.0,0.00021369,4]
[365349707,1749613840522,-588.24621237,0.00021369,4]
[365349709,1749613840531,-774.84,0.00021369,4]
[365349710,1749613840540,-460.0,0.00021369,4]
[365349711,1749613840549,-460.0,0.00021369,4]
[365349712,1749613840558,-460.0,0.00021369,4]
[365349713,1749613840571,-410.56437132,0.00021369,4]
[365349714,1749613840580,-460.0,0.00021369,4]
[365349715,1749613840590,-460.0,0.00021369,4]
[365349716,1749613840599,-460.0,0.00021369,4]
[365349717,1749613840608,-460.0,0.00021369,4]
[365349719,1749613840617,-393.83190078,0.00021369,4]
[365349721,1749613840632,-344.82147169,0.00021369,4]
[365349723,1749613840641,-460.0,0.00021369,4]
[365349725,1749613840650,-407.42521195,0.00021369,4]
[365349726,1749613840659,-460.0,0.00021369,2]
[365349727,1749613840670,-460.0,0.00021369,4]
[365349728,1749613840679,-2128.05,0.00021369,4]
[365349729,1749613840689,-919.45,0.00021369,4]
[365349730,1749613840698,-576.52,0.00021369,4]
[365349731,1749613840709,-1453.32,0.00021369,4]
[365349732,1749613840720,-460.0,0.00021369,4]
[365349733,1749613840730,-527.89,0.00021369,4]
[365349734,1749613840740,-883.82,0.00021369,4]
[365349735,1749613840750,-460.0,0.00021369,4]
[365349736,1749613840760,-1043.89,0.00021369,4]
[365349737,1749613840770,-460.0,0.00021369,4]
[365349738,1749613840779,-403.92475586,0.00021369,4]
[365349739,1749613840789,-1875.49,0.00021369,4]
[365349740,1749613840800,-460.0,0.00021369,4]
[365349741,1749613840810,-460.0,0.00021369,4]
[365349742,1749613840820,-460.0,0.00021369,4]
[365349743,1749613840830,-460.0,0.00021369,4]
[365349744,1749613840839,-1462.09,0.00021369,4]
[365349745,1749613840849,-460.0,0.00021369,4]
[365349746,1749613840859,-460.0,0.00021369,4]
[365349747,1749613840869,-460.0,0.00021369,4]
[365349748,1749613840878,-1092.66,0.00021369,4]
[365349749,1749613840888,-460.0,0.00021369,4]
[365349750,1749613840898,-1865.35,0.00021369,4]
[365349751,1749613840908,-460.0,0.00021369,4]
[365349752,1749613840918,-420.0,0.00021369,4]
[365349753,1749613840927,-964.2,0.00021369,4]
[365349754,1749613840937,-384.86192728,0.00021369,4]
[365349755,1749613840947,-646.18,0.00021369,4]
[365349756,1749613840956,-792.1,0.00021369,4]
[365349757,1749613840966,-396.97292605,0.00021369,4]
[365349758,1749613840976,-460.0,0.00021369,4]
[365349759,1749613840986,-460.0,0.00021369,4]
[365349760,1749613840995,-500.0,0.00021373,2]
[365349761,1749613841006,-505.74583877,0.00021505,2]
[365349762,1749613841016,-596.6885006,0.00021505,2]
[365349763,1749613841025,-503.19046685,0.00021505,2]
[365349764,1749613841035,-503.61112971,0.00021505,2]
[365349765,1749613841045,-500.0,0.00021505,2]
[365349766,1749613841054,-323.10399459,0.00021505,2]
[365349767,1749613841064,-503.16364477,0.00021613,2]
[365349768,1749613841074,-503.91009548,0.00021621,2]
[365349769,1749613841084,-173.19119812,0.00021624,2]
[365349770,1749613841094,-500.0,0.00021642,2]
[365349771,1749613841103,-484.14669275,0.00021642,2]
[365349772,1749613841114,-217.31337355,0.00021643,4]
[365349773,1749613841123,-273.29,0.00021643,4]
[365349774,1749613841133,-460.0,0.00021643,4]
[365349775,1749613841143,-220.0,0.00021643,4]
[365349776,1749613841155,-2272.46,0.00021643,4]
[365349777,1749613841166,-460.0,0.00021643,4]
[365349778,1749613841176,-967.8,0.00021643,4]
[365349779,1749613841185,-460.0,0.00021643,4]
[365349780,1749613841194,-774.84,0.00021643,4]
[365349781,1749613841204,-460.0,0.00021643,4]
[365349782,1749613841213,-460.0,0.00021643,4]
[365349783,1749613841223,-460.0,0.00021643,4]
[365349784,1749613841232,-460.0,0.00021643,4]
[365349785,1749613841242,-460.0,0.00021643,4]
[365349786,1749613841251,-460.0,0.00021643,4]
[365349787,1749613841261,-460.0,0.00021643,4]
[365349788,1749613841270,-360.16891728,0.00021643,4]
[365349789,1749613841280,-383.78333538,0.00021643,2]
[365349790,1749613841289,-460.0,0.00021643,4]
[365349791,1749613841299,-2128.05,0.00021643,4]
[365349792,1749613841308,-919.45,0.00021643,4]
[365349793,1749613841318,-576.52,0.00021643,4]
[365349794,1749613841327,-1453.32,0.00021643,4]
[365349795,1749613841337,-326.11544116,0.00021643,4]
[365349796,1749613841347,-527.89,0.00021643,4]
[365349797,1749613841356,-883.82,0.00021643,4]
[365349798,1749613841365,-460.0,0.00021643,4]
[365349799,1749613841375,-1043.89,0.00021643,4]
[365349800,1749613841385,-354.6117867,0.00021643,4]
[365349801,1749613841394,-1875.49,0.00021643,4]
[365349802,1749613841405,-460.0,0.00021643,4]
[365349803,1749613841415,-400.0,0.00021643,4]
[365349804,1749613841425,-489.4868992,0.00021643,4]
[365349805,1749613841435,-296.90652436,0.00021643,4]
[365349806,1749613841445,-1462.09,0.00021643,4]
[365349807,1749613841454,-460.0,0.00021643,4]
[365349808,1749613841463,-378.49876478,0.00021643,4]
[365349809,1749613841474,-460.0,0.00021643,4]
[365349810,1749613841484,-1092.66,0.00021643,4]
[365349811,1749613841493,-460.0,0.00021643,4]
[365349812,1749613841502,-1865.35,0.00021643,4]
[365349813,1749613841512,-460.0,0.00021643,4]
[365349814,1749613841521,-964.2,0.00021643,4]
[365349815,1749613841531,-646.18,0.00021643,4]
[365349816,1749613841540,-792.1,0.00021643,4]
[365349817,1749613841549,-276.06816235,0.00021643,4]
[365349818,1749613841559,-460.0,0.00021643,4]
[365349819,1749613841568,-503.32980933,0.0002168,2]
[365349820,1749613841577,-615.53,0.000217,2]
[365349821,1749613841587,-1110.910619,0.000217,2]
[365349822,1749613841596,-881.87,0.00021799,2]
[365349823,1749613841605,-252.16551377,0.00021817,2]
[365349824,1749613841614,-420.0,0.00021876,2]
[365349825,1749613841626,-420.0,0.00021877,2]
[365349826,1749613841635,-6155.28509126,0.000219,6]
[365349827,1749613841645,-174.05547185,0.00021917,4]
[365349828,1749613841654,-2272.46,0.00021917,4]
[365349829,1749613841663,-426.29651446,0.00021917,4]
[365349830,1749613841674,-967.8,0.00021917,4]
[365349831,1749613841684,-460.0,0.00021917,4]
[365349832,1749613841694,-774.84,0.00021917,4]
[365349833,1749613841705,-460.0,0.00021917,4]
[365349834,1749613841715,-460.0,0.00021917,4]
[365349835,1749613841725,-460.0,0.00021917,4]
[365349836,1749613841735,-500.0,0.00021917,4]
[365349837,1749613841744,-500.0,0.00021917,4]
[365349838,1749613841753,-500.0,0.00021917,4]
[365349839,1749613841762,-500.0,0.00021917,4]
[365349840,1749613841772,-460.0,0.00021917,4]
[365349841,1749613841782,-460.0,0.00021917,4]
[365349842,1749613841791,-460.0,0.00021917,4]
[365349843,1749613841800,-460.0,0.00021917,4]
[365349844,1749613841809,-348.19750712,0.00021917,4]
[365349845,1749613841818,-2128.05,0.00021917,4]
[365349846,1749613841828,-919.45,0.00021917,4]
[365349847,1749613841837,-576.52,0.00021917,4]
[365349848,1749613841847,-1453.32,0.00021917,4]
[365349849,1749613841856,-527.89,0.00021917,4]
[365349850,1749613841866,-883.82,0.00021917,4]
[365349851,1749613841876,-460.0,0.00021917,4]
[365349852,1749613841885,-1043.89,0.00021917,4]
[365349853,1749613841894,-1875.49,0.00021917,4]
[365349854,1749613841904,-574.63837359,0.00021917,4]
[365349855,1749613841914,-1462.09,0.00021917,4]
[365349856,1749613841923,-460.0,0.00021917,4]
[365349857,1749613841932,-440.0,0.00021917,4]
[365349858,1749613841942,-1092.66,0.00021917,4]
[365349859,1749613841951,-460.0,0.00021917,4]
[365349860,1749613841960,-1865.35,0.00021917,4]
[365349861,1749613841970,-460.0,0.00021917,4]
[365349862,1749613841980,-964.2,0.00021917,4]
[365349863,1749613841990,-646.18,0.00021917,4]
[365349864,1749613842000,-792.1,0.00021917,4]
[365349865,1749613842009,-460.0,0.00021917,4]
[365349866,1749613842019,-1000.0,0.00021921,2]
[365349867,1749613842028,-6155.28509107,0.00022003,6]
[365349868,1749613842038,-403.21717836,0.00022052,2]
[365349869,1749613842047,-365.0707398,0.00022082,2]
[365349870,1749613842057,-6155.28509107,0.00022107,6]
[365349871,1749613842066,-1292.1675106,0.00022128,2]
[365349872,1749613842076,-500.0,0.0002216,2]
[365349873,1749613842085,-2272.46,0.00022191,4]
[365349874,1749613842095,-967.8,0.00022191,4]
[365349875,1749613842104,-460.0,0.00022191,4]
[365349876,1749613842113,-774.84,0.00022191,4]
[365349877,1749613842217,-460.0,0.00022191,4]
[365349878,1749613842227,-460.0,0.00022191,4]
[365349879,1749613842236,-460.0,0.00022191,4]
[365349880,1749613842246,-504.312287,0.00022191,4]
[365349881,1749613842255,-360.0,0.00022191,4]
[365349882,1749613842265,-460.0,0.00022191,4]
[365349883,1749613842274,-460.0,0.00022191,4]
[365349884,1749613842283,-2128.05,0.00022191,4]
[365349885,1749613842293,-919.45,0.00022191,4]
[365349886,1749613842303,-576.52,0.00022191,4]
[365349887,1749613842312,-1453.32,0.00022191,4]
[365349888,1749613842321,-527.89,0.00022191,4]
[365349889,1749613842330,-883.82,0.00022191,4]
[365349890,1749613842339,-460.0,0.00022191,4]
[365349891,1749613842349,-1043.89,0.00022191,4]
[365349892,1749613842358,-1875.49,0.00022191,4]
[365349893,1749613842367,-1462.09,0.00022191,4]
[365349894,1749613842376,-460.0,0.00022191,4]
[365349895,1749613842385,-1092.66,0.00022191,4]
[365349896,1749613842394,-460.0,0.00022191,4]
[365349897,1749613842404,-1865.35,0.00022191,4]
[365349898,1749613842413,-460.0,0.00022191,4]
[365349899,1749613842422,-964.2,0.00022191,4]
[365349900,1749613842431,-646.18,0.00022191,4]
[365349901,1749613842440,-792.1,0.00022191,4]
[365349902,1749613842450,-460.0,0.00022191,4]
[365349903,1749613842459,-1000.0,0.000222,2]
[365349904,1749613842469,-6155.28509107,0.0002221,6]
[365349905,1749613842479,-764.0,0.00022221,7]
[365349906,1749613842488,-835.03886221,0.00022306,2]
[365349907,1749613842498,-229.71724145,0.00022306,2]
[365349908,1749613842507,-160.0,0.00022306,2]
[365349909,1749613842516,-160.0,0.00022306,2]
[365349910,1749613842525,-160.0,0.00022306,2]
[365349911,1749613842535,-160.0,0.00022306,2]
[365349912,1749613842544,-213.16534259,0.00022306,2]
[365349913,1749613842553,-424.19973472,0.00022306,2]
[365349914,1749613842562,-842.5625,0.00022306,2]
[365349915,1749613842571,-6155.28509107,0.00022314,7]
[365349916,1749613842580,-764.0,0.00022321,3]
[365349917,1749613842589,-16239.38042583,0.00022365,2]
[365349918,1749613842599,-6155.28509107,0.00022417,7]
[365349919,1749613842608,-764.0,0.00022421,6]
[365349920,1749613842618,-252.16551377,0.00022456,2]
[365349921,1749613842631,-239.28,0.00022464,2]
[365349922,1749613842641,-151.0,0.00022465,7]
[365349923,1749613842650,-2272.46,0.00022465,4]
[365349924,1749613842660,-967.8,0.00022465,4]
[365349925,1749613842671,-460.0,0.00022465,4]
[365349926,1749613842680,-774.84,0.00022465,4]
[365349927,1749613842689,-460.0,0.00022465,4]
[365349928,1749613842698,-460.0,0.00022465,4]
[365349929,1749613842708,-460.0,0.00022465,4]
[365349930,1749613842718,-351.22085574,0.00022465,4]
[365349931,1749613842728,-460.0,0.00022465,4]
[365349932,1749613842738,-2128.05,0.00022465,4]
[365349933,1749613842747,-919.45,0.00022465,4]
[365349934,1749613842757,-576.52,0.00022465,4]
[365349935,1749613842766,-1453.32,0.00022465,4]
[365349936,1749613842775,-527.89,0.00022465,4]
[365349937,1749613842784,-883.82,0.00022465,4]
[365349938,1749613842794,-460.0,0.00022465,4]
[365349939,1749613842803,-1043.89,0.00022465,4]
[365349940,1749613842813,-1875.49,0.00022465,4]
[365349941,1749613842825,-1462.09,0.00022465,4]
[365349942,1749613842835,-460.0,0.00022465,4]
[365349943,1749613842844,-1092.66,0.00022465,4]
[365349944,1749613842854,-460.0,0.00022465,4]
[365349945,1749613842864,-1865.35,0.00022465,4]
[365349946,1749613842873,-460.0,0.00022465,4]
[365349947,1749613842883,-964.2,0.00022465,4]
[365349948,1749613842893,-646.18,0.00022465,4]
[365349949,1749613842902,-792.1,0.00022465,4]
[365349950,1749613842911,-460.0,0.00022465,4]
[365349951,1749613842920,-6155.28509107,0.00022521,7]
[365349952,1749613842929,-764.0,0.00022521,5]
[365349953,1749613842939,-549.41174922,0.00022558,2]
[365349954,1749613842948,-730.1414796,0.00022575,2]
[365349955,1749613842958,-764.0,0.00022621,4]
[365349956,1749613842968,-6155.28509107,0.00022624,7]
[365349957,1749613842978,-207.4,0.00022635,2]
[365349958,1749613842987,-5000.0,0.00022635,2]
[365349959,1749613842996,-1000.0,0.000227,2]
[365349960,1749613843006,-764.0,0.00022721,2]
[365349961,1749613843016,-6155.28509107,0.00022728,7]
[365349962,1749613843026,-2272.46,0.00022739,4]
[365349963,1749613843035,-967.8,0.00022739,4]
[365349964,1749613843044,-460.0,0.00022739,4]
[365349965,1749613843054,-774.84,0.00022739,4]
[365349966,1749613843063,-460.0,0.00022739,4]
[365349967,1749613843073,-460.0,0.00022739,4]
[365349968,1749613843082,-460.0,0.00022739,4]
[365349969,1749613843091,-593.53617834,0.00022739,4]
[365349970,1749613843101,-2128.05,0.00022739,4]
[365349971,1749613843111,-919.45,0.00022739,4]
[365349972,1749613843120,-576.52,0.00022739,4]
[365349973,1749613843130,-1453.32,0.00022739,4]
[365349974,1749613843143,-527.89,0.00022739,4]
[365349975,1749613843153,-883.82,0.00022739,4]
[365349976,1749613843163,-460.0,0.00022739,4]
[365349977,1749613843173,-1043.89,0.00022739,4]
[365349978,1749613843183,-1875.49,0.00022739,4]
[365349979,1749613843193,-1462.09,0.00022739,4]
[365349981,1749613843203,-460.0,0.00022739,4]
[365349983,1749613843213,-1092.66,0.00022739,4]
[365349985,1749613843224,-460.0,0.00022739,4]
[365349986,1749613843234,-1865.35,0.00022739,4]
[365349987,1749613843243,-460.0,0.00022739,4]
[365349989,1749613843252,-964.2,0.00022739,4]
[365349990,1749613843262,-646.18,0.00022739,4]
[365349992,1749613843272,-792.1,0.00022739,4]
[365349995,1749613843285,-1175.82,0.00022746,2]
[365349997,1749613843294,-764.0,0.00022821,5]
[365349999,1749613843303,-6155.28509107,0.00022831,8]
[365350001,1749613843313,-764.0,0.00022921,4]
[365350003,1749613843322,-6155.28509107,0.00022934,8]
[365350005,1749613843331,-151.0,0.00023,7]
[365350007,1749613843340,-2272.46,0.00023013,4]
[365350009,1749613843349,-967.8,0.00023013,4]
[365350011,1749613843358,-404.46883553,0.00023013,4]
[365350013,1749613843368,-774.84,0.00023013,4]
[365350015,1749613843377,-460.0,0.00023013,4]
[365350017,1749613843390,-460.0,0.00023013,4]
[365350019,1749613843401,-460.0,0.00023013,4]
[365350021,1749613843410,-2128.05,0.00023013,4]
[365350023,1749613843420,-919.45,0.00023013,4]
[365350025,1749613843429,-576.52,0.00023013,4]
[365350027,1749613843438,-1453.32,0.00023013,4]
[365350029,1749613843448,-527.89,0.00023013,4]
[365350031,1749613843457,-883.82,0.00023013,4]
[365350033,1749613843466,-460.0,0.00023013,4]
[365350035,1749613843477,-1043.89,0.00023013,4]
[365350037,1749613843486,-1875.49,0.00023013,4]
[365350039,1749613843495,-1462.09,0.00023013,4]
[365350041,1749613843505,-460.0,0.00023013,4]
[365350043,1749613843514,-1092.66,0.00023013,4]
[365350045,1749613843524,-460.0,0.00023013,4]
[365350047,1749613843533,-1865.35,0.00023013,4]
[365350049,1749613843542,-460.0,0.00023013,4]
[365350051,1749613843551,-964.2,0.00023013,4]
[365350053,1749613843560,-646.18,0.00023013,4]
[365350055,1749613843570,-792.1,0.00023013,4]
[365350057,1749613843579,-764.0,0.00023021,5]
[365350059,1749613843588,-6155.28509107,0.00023038,8]
[365350061,1749613843598,-168.0,0.00023058,2]
[365350062,1749613843608,-252.16551377,0.00023096,2]
[365350063,1749613843617,-764.0,0.00023121,2]
[365350064,1749613843629,-6155.28509107,0.00023141,8]
[365350065,1749613843640,-5000.0,0.00023183,2]
[365350066,1749613843650,-615.53,0.000232,7]
[365350067,1749613843659,-1000.0,0.000232,2]
[365350068,1749613843670,-764.0,0.00023221,5]
[365350069,1749613843680,-6155.28509107,0.00023245,8]
[365350070,1749613843690,-500.0,0.00023256,2]
[365350071,1749613843701,-2272.46,0.00023287,4]
[365350072,1749613843711,-967.8,0.00023287,4]
[365350073,1749613843721,-774.84,0.00023287,4]
[365350074,1749613843730,-460.0,0.00023287,4]
[365350075,1749613843740,-460.0,0.00023287,4]
[365350076,1749613843750,-460.0,0.00023287,4]
[365350078,1749613843759,-2128.05,0.00023287,4]
[365350080,1749613843768,-919.45,0.00023287,4]
[365350082,1749613843778,-576.52,0.00023287,4]
[365350084,1749613843788,-1453.32,0.00023287,4]
[365350086,1749613843797,-527.89,0.00023287,4]
[365350088,1749613843809,-883.82,0.00023287,4]
[365350090,1749613843818,-460.0,0.00023287,4]
[365350092,1749613843827,-1043.89,0.00023287,4]
[365350094,1749613843837,-1875.49,0.00023287,4]
[365350096,1749613843846,-1462.09,0.00023287,4]
[365350098,1749613843856,-460.0,0.00023287,4]
[365350100,1749613843865,-1092.66,0.00023287,4]
[365350102,1749613843875,-460.0,0.00023287,4]
[365350104,1749613843884,-1865.35,0.00023287,4]
[365350106,1749613843893,-460.0,0.00023287,4]
[365350108,1749613843903,-964.2,0.00023287,4]
[365350110,1749613843912,-646.18,0.00023287,4]
[365350112,1749613843922,-792.1,0.00023287,4]
[365350114,1749613843932,-764.0,0.00023321,2]
[365350116,1749613843941,-6155.28509107,0.00023348,9]
[365350118,1749613843950,-280.23580309,0.000234,7]
[365350120,1749613843960,-213.08280952,0.00023409,2]
[365350122,1749613843970,-764.0,0.00023421,5]
[365350124,1749613843980,-6155.28509107,0.00023452,9]
[365350126,1749613843989,-764.0,0.00023521,4]
[365350128,1749613843999,-16239.38042583,0.0002353,2]
[365350130,1749613844008,-364.9269501,0.00023534,2]
[365350132,1749613844018,-636.0,0.00023543,2]
[365350134,1749613844027,-168.0,0.00023549,2]
[365350136,1749613844036,-6155.28509107,0.00023555,9]
[365350138,1749613844046,-395.62565347,0.00023558,2]
[365350140,1749613844055,-2272.46,0.00023561,4]
[365350142,1749613844064,-967.8,0.00023561,4]
[365350144,1749613844074,-774.84,0.00023561,4]
[365350146,1749613844083,-460.0,0.00023561,4]
[365350148,1749613844092,-460.0,0.00023561,4]
[365350150,1749613844102,-460.0,0.00023561,4]
[365350152,1749613844111,-2128.05,0.00023561,4]
[365350154,1749613844121,-919.45,0.00023561,4]
[365350156,1749613844131,-576.52,0.00023561,4]
[365350158,1749613844141,-1453.32,0.00023561,4]
[365350160,1749613844150,-527.89,0.00023561,4]
[365350162,1749613844159,-883.82,0.00023561,4]
[365350164,1749613844169,-460.0,0.00023561,4]
[365350165,1749613844178,-1043.89,0.00023561,4]
[365350167,1749613844187,-1875.49,0.00023561,4]
[365350169,1749613844197,-1462.09,0.00023561,4]
[365350171,1749613844206,-460.0,0.00023561,4]
[365350173,1749613844215,-1092.66,0.00023561,4]
[365350175,1749613844225,-460.0,0.00023561,4]
[365350177,1749613844234,-1865.35,0.00023561,4]
[365350179,1749613844243,-460.0,0.00023561,4]
[365350181,1749613844253,-964.2,0.00023561,4]
[365350183,1749613844262,-646.18,0.00023561,4]
[365350185,1749613844272,-792.1,0.00023561,4]
[365350187,1749613844281,-32722.87,0.000236,2]
[365350189,1749613844290,-764.0,0.00023621,6]
[365350191,1749613844299,-1257.589503,0.00023626,3]
[365350193,1749613844308,-6155.28509107,0.00023659,9]
[365350195,1749613844317,-176.7945791,0.00023671,2]
[365350197,1749613844326,-573.244939,0.00023671,2]
[365350199,1749613844335,-158.7201836,0.00023671,2]
[365350201,1749613844344,-161.4709725,0.00023671,2]
[365350203,1749613844353,-395.62565347,0.00023683,2]
[365350205,1749613844363,-1469.78,0.00023694,2]
[365350207,1749613844372,-1000.0,0.000237,2]
[365350209,1749613844381,-764.0,0.00023721,3]
[365350211,1749613844390,-5000.0,0.00023731,2]
[365350213,1749613844399,-252.16551377,0.00023735,2]
[365350215,1749613844407,-160.0,0.0002375,3]
[365350217,1749613844416,-161.05064448,0.0002375,5]
[365350219,1749613844425,-6155.28509107,0.00023762,9]
[365350221,1749613844434,-1000.0,0.000238,6]
[365350223,1749613844443,-1000.0,0.000238,7]
[365350225,1749613844452,-151.0,0.000238,10]
[365350227,1749613844461,-587.0,0.00023818,2]
[365350229,1749613844471,-587.0,0.0002382,2]
[365350231,1749613844479,-764.0,0.00023821,3]
[365350233,1749613844489,-239.28,0.00023834,2]
[365350235,1749613844498,-2272.46,0.00023835,4]
[365350237,1749613844507,-967.8,0.00023835,4]
[365350239,1749613844516,-774.84,0.00023835,4]
[365350241,1749613844525,-460.0,0.00023835,4]
[365350243,1749613844534,-460.0,0.00023835,4]
[365350245,1749613844543,-460.0,0.00023835,4]
[365350247,1749613844552,-2128.05,0.00023835,4]
[365350249,1749613844561,-919.45,0.00023835,4]
[365350251,1749613844570,-576.52,0.00023835,4]
[365350253,1749613844579,-1453.32,0.00023835,4]
[365350255,1749613844588,-527.89,0.00023835,4]
[365350257,1749613844598,-883.82,0.00023835,4]
[365350259,1749613844608,-460.0,0.00023835,4]
[365350261,1749613844618,-1043.89,0.00023835,4]
[365350263,1749613844631,-1875.49,0.00023835,4]
[365350265,1749613844640,-1462.09,0.00023835,4]
[365350267,1749613844650,-460.0,0.00023835,4]
[365350278,1749613844748,-1092.66,0.00023835,4]
[365350280,1749613844759,-460.0,0.00023835,4]
[365350282,1749613844768,-1865.35,0.00023835,4]
[365350284,1749613844778,-460.0,0.00023835,4]
[365350286,1749613844787,-964.2,0.00023835,4]
[365350287,1749613844797,-646.18,0.00023835,4]
[365350288,1749613844806,-792.1,0.00023835,4]
[365350289,1749613844815,-151.0,0.0002386,3]
[365350290,1749613844825,-152.8942424,0.0002386,3]
[365350291,1749613844834,-1745.0,0.0002386,3]
[365350292,1749613844843,-1745.0,0.0002386,3]
[365350293,1749613844852,-1745.0,0.0002386,3]
[365350294,1749613844862,-1745.0,0.0002386,3]
[365350295,1749613844871,-171.0,0.0002386,3]
[365350296,1749613844880,-1745.0,0.0002386,3]
[365350297,1749613844889,-271.03904922,0.0002386,3]
[365350298,1749613844898,-1745.0,0.0002386,3]
[365350299,1749613844907,-1745.0,0.0002386,3]
[365350300,1749613844916,-1745.0,0.0002386,3]
[365350301,1749613844926,-1745.0,0.0002386,3]
[365350302,1749613844935,-1745.0,0.0002386,3]
[365350303,1749613844944,-1745.0,0.0002386,3]
[365350304,1749613844954,-1745.0,0.0002386,3]
[365350305,1749613844963,-1745.0,0.0002386,3]
[365350306,1749613844972,-1745.0,0.0002386,3]
[365350307,1749613844981,-1745.0,0.0002386,3]
[365350308,1749613844990,-1008.25191733,0.0002386,3]
[365350309,1749613844999,-317.0,0.0002386,3]
[365350310,1749613845008,-317.0,0.0002386,3]
[365350311,1749613845017,-330.24757634,0.0002386,3]
[365350312,1749613845026,-160.0,0.0002386,3]
[365350313,1749613845035,-842.5625,0.0002386,3]
[365350314,1749613845046,-229.71724145,0.0002386,3]
[365350315,1749613845057,-424.19973472,0.0002386,3]
[365350316,1749613845066,-835.03886221,0.0002386,3]
[365350317,1749613845075,-6155.28509107,0.00023866,10]
[365350318,1749613845085,-160.0,0.000239,3]
[365350319,1749613845095,-160.0,0.000239,3]
[365350320,1749613845106,-601.74494822,0.00023904,2]
[365350321,1749613845114,-165.80565524,0.00023918,2]
[365350322,1749613845123,-764.0,0.00023921,3]
[365350323,1749613845132,-1745.0,0.00023933,3]
[365350324,1749613845141,-1745.0,0.00023933,3]
[365350325,1749613845150,-1745.0,0.00023933,3]
[365350326,1749613845159,-1745.0,0.00023933,3]
[365350327,1749613845168,-1745.0,0.00023933,3]
[365350328,1749613845177,-1739.0,0.00023933,3]
[365350329,1749613845186,-1745.0,0.00023933,3]